bitfinex/quotes_ETHUSD_20220202
["timestamp","ask_amount","ask_price","bid_price","bid_amount"]
[1643811307217,0.1802,2774.4,2773.7,1.90113]
[1643811307416,0.1802,2774.8,2774.1,0.90089]
[1643811307611,0.22036301,2775.0,2774.2,0.519]
[1643811307811,0.22036301,2775.0,2774.3,0.1802]
[1643811308411,0.89198127,2774.9,2774.3,0.1802]
[1643811308610,1.67218127,2774.9,2774.2,1.6992]
[1643811308815,1.49198127,2774.9,2774.5,0.00414676]
[1643811309416,1.49198127,2774.9,2774.7,2.28368616]
[1643811310460,2.39295857,2774.9,2774.7,2.28368616]
[1643811311064,2.57305857,2774.9,2774.7,2.2878287]
[1643811311266,2.71724057,2774.9,2774.7,2.2878287]
[1643811311664,1.81626327,2774.9,2774.7,2.2878287]
[1643811311863,1.67208127,2774.9,2774.7,2.2878287]
[1643811312066,1.67208127,2774.9,2774.7,2.28368616]
[1643811312367,1.67208127,2774.9,2774.7,2.2878287]
[1643811312766,0.7801,2774.9,2774.7,2.2878287]
[1643811312966,0.6,2774.9,2774.7,2.2878287]
[1643811313167,0.1801,2775.5,2774.8,0.519]
[1643811313368,0.1801,2775.5,2774.8,2.4142]
[1643811313566,3.84064222,2776.6,2774.8,2.4142]
[1643811313567,0.1801,2776.4,2774.9,2.35103375]
[1643811313819,0.75041518,2776.1,2775.4,0.90049]
[1643811314118,0.75041518,2776.1,2775.5,0.519]
[1643811314318,1.44834822,2776.5,2775.5,0.519]
[1643811314319,0.1801,2776.3,2775.5,0.519]
[1643811314517,1.52768739,2776.2,2775.5,0.519]
[1643811314720,0.1801,2776.1,2776.0,1.14184308]
[1643811314922,0.1801,2776.1,2775.8,0.65417078]
[1643811315120,0.2106523,2776.0,2775.8,0.65417078]
[1643811315517,0.1801,2776.1,2775.8,0.65417078]
[1643811315919,1.08067,2776.1,2775.8,0.65417078]
[1643811316120,0.7801,2776.2,2775.8,0.65417078]
[1643811316319,0.3,2776.2,2775.8,0.65417078]
[1643811316519,0.74273965,2776.2,2775.8,0.65417078]
[1643811316718,0.56263965,2776.2,2775.8,0.65417078]
[1643811317322,1.46320965,2776.2,2775.8,0.65417078]
[1643811317576,0.1801,2776.3,2775.8,0.65417078]
[1643811317777,2.34629607,2776.5,2775.8,1.17317078]
[1643811317778,0.1801,2776.4,2775.8,1.17317078]
[1643811317974,0.54518607,2776.5,2775.9,0.1801]
[1643811318173,0.54518607,2776.5,2776.0,0.519]
[1643811318374,0.54518607,2776.5,2776.0,1.41936]
[1643811318780,0.8071267,2776.5,2776.0,3.3671442]
[1643811318982,0.8071267,2776.5,2776.0,1.41936]
[1643811319180,0.8071267,2776.5,2776.1,1.0]
[1643811319381,0.8071267,2776.5,2776.1,0.519]
[1643811319581,0.8071267,2776.5,2776.1,0.52354192]
[1643811319982,0.8071267,2776.5,2776.3,0.65417078]
[1643811320184,2.76139264,2776.5,2776.3,0.65417078]
[1643811320385,1.52755453,2776.4,2776.3,0.65417078]
[1643811320581,2.00745453,2776.4,2776.3,0.65417078]
[1643811321230,0.4799,2776.4,2776.3,0.65417078]
[1643811321936,0.3,2776.4,2776.3,0.65417078]
[1643811322736,1.82751547,2776.4,2776.3,0.65417078]
[1643811323135,1.52751547,2776.4,2776.3,0.65417078]
[1643811323333,0.3,2776.4,2776.3,0.65417078]
[1643811323838,1.5870267,2776.5,2776.3,0.65417078]
[1643811324039,1.4071267,2776.5,2776.3,0.65417078]
[1643811324237,1.4071267,2776.5,2776.3,1.55450078]
[1643811325185,1.4071267,2776.5,2776.1,0.519]
[1643811325186,0.8071267,2776.5,2776.1,0.519]
[1643811325390,0.8071267,2776.5,2776.4,0.65417078]
[1643811325587,2.33456785,2776.5,2776.4,0.65417078]
[1643811325989,2.28456785,2776.5,2776.4,0.65417078]
[1643811326785,2.58457676,2776.5,2776.4,0.65417078]
[1643811326986,1.0571267,2776.5,2776.4,0.65417078]
[1643811327190,2.88456631,2776.5,2776.4,0.65417078]
[1643811327388,2.62262568,2776.5,2776.4,0.65417078]
[1643811328492,2.62262568,2776.5,2776.4,1.17317078]
[1643811328493,0.49518607,2776.5,2776.4,1.17317078]
[1643811329116,0.49518607,2776.5,2776.4,1.35307078]
[1643811331619,0.49518607,2776.5,2776.4,3.40836303]
[1643811331821,0.49518607,2776.5,2776.4,4.40836303]
[1643811332669,0.49518607,2776.5,2776.4,2.35307078]
[1643811332866,0.49518607,2776.5,2776.4,1.35307078]
[1643811333068,0.49518607,2776.5,2776.4,2.35307078]
[1643811333668,0.76437396,2776.5,2776.4,1.35307078]
[1643811333872,0.76437396,2776.5,2776.4,2.17317078]
[1643811334174,0.76437396,2776.5,2776.4,0.65417078]
[1643811334175,1.36437396,2776.5,2776.4,0.65417078]
[1643811334774,1.06437396,2776.5,2776.4,0.65417078]
[1643811334974,1.06437396,2776.5,2775.9,1.80077]
[1643811335174,0.1801,2776.4,2776.2,0.00411295]
[1643811335974,0.1801,2776.4,2776.1,0.90039]
[1643811336220,0.1801,2776.4,2776.2,0.00407455]
[1643811337220,0.1801,2776.4,2776.1,0.90039]
[1643811337419,0.1801,2776.4,2776.2,0.0041322]
[1643811338523,0.1801,2776.4,2776.2,1.80056]
[1643811338720,1.20847496,2776.5,2776.2,1.8046922]
[1643811338924,1.06437396,2776.5,2776.2,1.8046922]
[1643811339125,0.1799,2776.4,2776.2,1.8046922]
[1643811339726,0.1799,2776.4,2776.2,1.80056]
[1643811339968,0.1799,2776.4,2776.2,1.8046922]
[1643811340374,0.79518607,2776.5,2776.3,0.519]
[1643811340669,0.49518607,2776.5,2776.3,2.41923]
[1643811341073,0.49518607,2776.5,2776.3,1.41923]
[1643811342269,0.79518607,2776.5,2776.3,1.41923]
[1643811342671,0.49518607,2776.5,2776.3,1.41923]
[1643811342871,0.49518607,2776.5,2776.3,2.41923]
[1643811343073,0.49518607,2776.5,2776.3,1.41923]
[1643811343271,0.49518607,2776.5,2776.3,2.41923]
[1643811343471,0.49518607,2776.5,2776.3,3.33242835]
[1643811343717,0.49518607,2776.5,2776.4,8.1226989]
[1643811343921,0.49518607,2776.5,2776.4,8.6416989]
[1643811344120,0.49518607,2776.5,2776.4,9.6416989]
[1643811344521,0.49518607,2776.5,2776.4,3.4916989]
[1643811344721,0.49518607,2776.5,2776.4,1.6989]
[1643811345120,0.49518607,2776.5,2776.4,0.6989]
[1643811345320,0.49518607,2776.5,2776.4,2.63070945]
[1643811345721,0.49518607,2776.5,2776.4,3.63070945]
[1643811346622,0.49518607,2776.5,2776.4,7.13070945]
[1643811347222,0.49518607,2776.5,2776.4,3.63070945]
[1643811347868,0.00415613,2776.8,2776.5,7.94992]
[1643811348070,0.00262215,2777.2,2776.6,5.51327752]
[1643811348269,0.00262215,2777.2,2776.6,6.51327752]
[1643811348471,0.00415675,2776.8,2776.6,6.51327752]
[1643811348671,0.00415675,2776.8,2776.7,1.98669796]
[1643811348876,0.00415675,2776.8,2776.7,2.50569796]
[1643811349374,0.00262215,2777.2,2776.7,5.30561796]
[1643811349774,0.00415679,2776.9,2776.8,1.0]
[1643811349974,0.00415679,2776.9,2776.8,1.519]
[1643811350375,0.144067,2777.0,2776.9,3.25]
[1643811350575,0.144067,2777.0,2776.9,0.519]
[1643811350778,0.00263105,2777.2,2777.0,3.5996803]
[1643811350978,0.19652434,2777.4,2777.0,4.1186803]
[1643811350979,0.00263105,2777.3,2777.0,4.1186803]
[1643811351240,0.18253105,2777.3,2777.1,1.3]
[1643811351442,0.1799,2777.3,2777.1,1.3]
[1643811351640,0.1799,2777.3,2777.1,3.0998375]
[1643811351839,0.00192526,2777.3,2777.2,0.519]
[1643811352840,0.18253105,2777.5,2777.2,0.519]
[1643811353043,0.00263105,2777.5,2777.2,0.519]
[1643811353242,0.18182526,2777.4,2777.2,0.519]
[1643811353541,0.00192526,2777.4,2777.2,0.519]
[1643811354246,0.00454751,2777.4,2777.2,0.819]
[1643811354449,0.00454751,2777.4,2777.2,0.519]
[1643811354746,0.18444751,2777.4,2777.2,0.519]
[1643811354966,0.18444751,2777.4,2777.1,0.8999]
[1643811355167,1.52701372,2777.3,2777.0,3.5996803]
[1643811355370,1.70691372,2777.3,2777.0,3.5996803]
[1643811355569,0.1799,2777.3,2777.0,3.50197758]
[1643811356168,0.1799,2777.3,2777.1,0.8999]
[1643811356769,0.0045476,2777.3,2777.1,0.8999]
[1643811356969,0.0045476,2777.3,2777.1,2.7998352]
[1643811357170,0.1344476,2777.4,2777.2,3.6]
[1643811357369,0.1344476,2777.4,2777.3,1.0]
[1643811357571,0.18253105,2777.7,2777.1,2.3188352]
[1643811357770,1.52692439,2777.6,2777.3,0.89998]
[1643811359125,1.53147175,2777.6,2777.3,0.89998]
[1643811359420,1.52692439,2777.5,2777.3,0.89998]
[1643811360221,0.18253105,2777.7,2777.3,0.89998]
[1643811360222,1.52692439,2777.4,2777.3,0.89998]
[1643811360421,0.18253105,2777.7,2777.3,0.89998]
[1643811360422,0.00454741,2777.5,2777.3,0.89998]
[1643811360623,1.52692439,2777.4,2777.3,0.89998]
[1643811361425,0.00263105,2777.7,2777.3,0.89998]
[1643811361631,0.00454746,2777.5,2777.3,0.89998]
[1643811362125,1.52684868,2777.4,2777.3,0.89998]
[1643811364176,1.52684868,2777.4,2777.3,1.7998963]
[1643811364374,1.52684868,2777.4,2777.3,2.7998963]
[1643811365074,1.52684868,2777.4,2777.3,1.7998963]
[1643811365877,1.52684868,2777.4,2777.2,1.7998326]
[1643811366324,1.52684868,2777.3,2777.2,2.6998726]
[1643811366520,1.70674868,2777.4,2777.2,2.6998726]
[1643811366726,1.52684868,2777.3,2777.2,2.6998726]
[1643811367321,1.52684868,2777.4,2777.2,4.2188726]
[1643811367521,1.52684868,2777.3,2777.2,3.2188726]
[1643811368122,1.52684868,2777.3,2777.1,1.7999292]
[1643811368723,1.52684868,2777.2,2777.1,1.7999292]
[1643811368925,1.52684868,2777.3,2777.1,1.7999292]
[1643811369126,1.74800029,2777.3,2777.1,1.7999292]
[1643811369330,1.52684868,2777.2,2777.1,1.7999292]
[1643811369528,1.52684868,2777.2,2777.0,1.79979]
[1643811370369,0.22115161,2777.3,2777.0,1.79979]
[1643811370768,1.52701439,2777.2,2777.0,1.79979]
[1643811371269,1.52701439,2777.2,2777.0,3.5997796]
[1643811373274,1.52701439,2777.2,2776.8,3.7802474]
[1643811373476,1.52701439,2777.2,2775.8,7.6114]
[1643811373477,0.67430043,2777.1,2776.3,0.519]
[1643811373718,1.70691439,2777.0,2776.1,0.1799]
[1643811373921,1.70691439,2777.0,2775.9,2.1799]
[1643811373922,1.52701439,2776.9,2775.9,2.1799]
[1643811374125,0.1799,2776.8,2775.9,2.1799]
[1643811374426,0.19080988,2776.5,2775.9,0.1799]
[1643811374626,0.19080988,2776.5,2776.1,3.6012527]
[1643811374822,0.19080988,2776.5,2776.2,1.00455065]
[1643811375022,0.1799,2777.0,2776.2,1.00455065]
[1643811375223,1.52727544,2776.9,2776.2,1.00455065]
[1643811375524,0.1799,2776.8,2776.2,1.00455065]
[1643811375722,1.52727544,2776.7,2776.2,1.0]
[1643811375923,0.1799,2776.8,2776.2,1.0]
[1643811375924,0.1799,2776.8,2776.4,0.00455046]
[1643811376325,0.23858121,2776.6,2776.4,0.00455046]
[1643811376928,0.23858121,2776.6,2776.3,1.8006569]
[1643811377127,0.1799,2776.8,2776.4,0.00455051]
[1643811378174,0.19459728,2776.6,2776.3,1.8006569]
[1643811378374,0.1799,2776.8,2776.3,1.8006569]
[1643811378375,2.12442887,2776.8,2776.5,0.00455042]
[1643811378575,0.1799,2776.8,2776.5,0.00455042]
[1643811378781,0.1799,2776.8,2776.5,0.90483042]
[1643811378979,0.81839543,2777.1,2776.5,1.90483042]
[1643811378980,0.1799,2777.0,2776.5,1.90483042]
[1643811379178,1.52716867,2776.9,2776.5,0.90483042]
[1643811379383,0.1799,2777.0,2776.5,0.90028]
[1643811379583,1.75755231,2776.9,2776.6,0.00455027]
[1643811379881,1.52717919,2776.8,2776.6,0.00455027]
[1643811380481,1.52717919,2776.8,2776.3,0.90033]
[1643811380679,1.52717919,2776.8,2776.6,0.00455032]
[1643811380879,0.23037312,2776.9,2776.6,0.00455032]
[1643811381079,1.13072312,2776.9,2776.6,0.00455032]
[1643811381723,1.13072312,2776.9,2776.3,0.90033]
[1643811381926,1.13072312,2776.9,2776.3,0.85488027]
[1643811383125,1.94377129,2776.8,2776.3,0.85488027]
[1643811383327,2.05342902,2776.8,2776.2,0.1799]
[1643811383626,0.1799,2776.7,2776.2,0.1799]
[1643811383827,1.80109,2776.6,2776.2,0.1799]
[1643811384028,1.98588469,2776.5,2776.2,0.1799]
[1643811384229,0.22129565,2776.4,2776.2,0.1799]
[1643811384430,1.95572519,2776.3,2776.2,0.1799]
[1643811384634,1.95572519,2776.3,2775.6,4.9073]
[1643811384635,1.95604606,2776.3,2775.9,0.1799]
[1643811384832,1.95604606,2776.3,2775.6,4.9073]
[1643811384833,2.25604606,2776.3,2775.7,0.1801]
[1643811385670,0.23689994,2775.9,2775.7,0.1801]
[1643811385871,0.23689994,2775.9,2775.6,0.90059]
[1643811386072,0.23689994,2775.9,2775.6,1.8011558]
[1643811386872,0.23689994,2775.9,2775.6,1.80570224]
[1643811387674,0.23689994,2775.9,2775.6,1.8011558]
[1643811388074,0.23689994,2775.9,2775.6,1.80570224]
[1643811388926,0.23689994,2775.9,2775.6,1.8011558]
[1643811389126,0.23689994,2775.9,2775.6,1.80570224]
[1643811390127,0.23689994,2775.9,2775.6,1.8011558]
[1643811390326,0.23689994,2775.9,2775.6,1.80570224]
[1643811391335,0.23689994,2775.9,2775.6,1.8011558]
[1643811391529,0.90056,2776.2,2775.6,1.8011558]
[1643811391731,0.1801,2776.4,2775.8,0.90046]
[1643811392132,0.1801,2776.4,2775.8,1.90046]
[1643811392330,0.1801,2776.4,2775.9,0.519]
[1643811392572,0.144127,2776.5,2775.9,0.519]
[1643811392768,0.23178292,2776.4,2775.9,0.519]
[1643811392971,0.23178292,2776.4,2776.0,0.9048861]
[1643811393171,0.1801,2776.7,2776.0,1.2048861]
[1643811393370,3.07694426,2777.1,2776.0,1.8235461]
[1643811393371,0.1799,2777.0,2776.0,1.8235461]
[1643811393576,0.00454426,2777.1,2776.0,1.8235461]
[1643811393773,0.1799,2777.3,2776.1,0.1799]
[1643811394075,0.00454453,2777.1,2776.5,0.9001731]
[1643811394278,0.00454453,2777.1,2776.6,0.6989]
[1643811394473,0.00454453,2777.1,2776.6,0.519]
[1643811394878,0.1799,2777.3,2776.6,0.519]
[1643811395079,0.19599731,2777.0,2776.6,0.519]
[1643811396321,0.19599731,2777.0,2776.7,0.90024]
[1643811396520,0.19599731,2777.0,2776.5,1.80479236]
[1643811396720,0.37589731,2777.0,2776.5,2.80479236]
[1643811397323,0.37589731,2777.0,2776.5,1.8004]
[1643811397523,0.37589731,2777.0,2776.5,1.80479233]
[1643811398523,0.37589731,2777.0,2776.5,1.8004]
[1643811398723,0.37589731,2777.0,2776.5,1.80451855]
[1643811398926,0.14599731,2777.0,2776.5,1.80451855]
[1643811399728,0.14599731,2777.0,2776.6,1.4191599]
[1643811400872,1.5271247,2776.9,2776.6,1.4191599]
[1643811401075,1.5271247,2776.9,2776.7,0.90015]
[1643811401274,1.8271247,2776.9,2776.7,0.90015]
[1643811401471,1.5271247,2776.8,2776.7,0.90015]
[1643811402172,1.5271247,2776.9,2776.7,0.90015]
[1643811402373,1.5271247,2776.8,2776.7,0.90015]
[1643811402775,1.5271247,2776.9,2776.7,0.90015]
[1643811402973,1.5271247,2776.8,2776.5,1.80455859]
[1643811403172,0.14599731,2777.0,2776.5,1.80455859]
[1643811403173,1.5271247,2776.7,2776.5,1.80455859]
[1643811403372,0.3,2776.9,2776.5,1.8004]
[1643811403572,1.52725981,2776.8,2776.5,1.80455852]
[1643811403827,4.39426162,2776.8,2776.5,0.00415852]
[1643811404026,1.52725981,2776.7,2776.5,0.00415852]
[1643811404227,1.93810258,2776.6,2776.5,0.00415852]
[1643811404426,3.46536239,2776.6,2776.5,0.00415852]
[1643811404628,0.92858907,2776.4,2776.1,0.1799]
[1643811405027,0.3,2776.4,2776.1,0.1799]
[1643811405227,0.90047,2776.5,2776.0,0.1799]
[1643811405431,0.26132883,2776.3,2776.0,0.1799]
[1643811406028,0.26132883,2776.3,2776.0,0.184053]
[1643811406228,0.26132883,2776.3,2776.0,1.0844188]
[1643811406629,2.22168884,2776.3,2776.0,0.184053]
[1643811406828,0.26132883,2776.3,2776.0,0.004153]
[1643811407029,2.22576558,2776.3,2775.9,1.0]
[1643811407228,0.26132883,2776.3,2776.0,0.004153]
[1643811407474,2.19716785,2776.3,2776.0,0.004153]
[1643811407674,2.4913136,2776.3,2776.0,0.004153]
[1643811408276,2.4913136,2776.3,2775.7,0.1801]
[1643811408475,2.6714136,2776.3,2776.0,0.004153]
[1643811408674,0.74142883,2776.3,2776.0,0.004153]
[1643811408878,2.70704542,2776.3,2776.0,0.004153]
[1643811409280,1.64194883,2776.3,2776.0,0.004153]
[1643811409479,3.58962993,2776.3,2775.7,1.0806]
[1643811409679,1.64194883,2776.3,2776.0,0.00415947]
[1643811410181,3.32858621,2776.2,2776.0,0.00415947]
[1643811410381,11.03795621,2776.1,2776.0,0.00415947]
[1643811410587,0.90699591,2776.0,2775.3,0.1801]
[1643811410781,1.80779591,2776.0,2775.3,0.1801]
[1643811410980,0.24778737,2775.8,2775.1,0.00142832]
[1643811411223,0.69273208,2775.2,2774.9,0.1801]
[1643811411822,1.59357208,2775.2,2774.9,0.18152832]
[1643811412222,1.59357208,2775.2,2774.9,0.00558868]
[1643811412422,0.23326322,2775.1,2774.9,0.00416036]
[1643811413019,0.23326322,2775.1,2774.8,0.18152832]
[1643811413225,0.23326322,2775.1,2774.9,0.00225031]
[1643811414225,0.23326322,2775.1,2774.8,0.18152832]
[1643811414425,0.23326322,2775.1,2774.9,0.00225031]
[1643811414627,2.2113385,2775.1,2774.9,0.00225031]
[1643811414827,2.5113385,2775.1,2774.9,0.00225031]
[1643811415072,1.97480314,2775.0,2774.9,0.00225031]
[1643811415575,2.87577314,2775.0,2774.8,0.00225035]
[1643811415775,1.95567651,2774.9,2774.8,0.00225035]
[1643811415972,2.71368708,2774.9,2774.8,0.00225035]
[1643811416172,3.01368708,2774.9,2774.8,0.00225035]
[1643811416572,3.01368708,2774.9,2774.4,0.00900274]
[1643811416573,3.01368708,2774.9,2774.3,0.00142832]
[1643811416774,3.91467708,2774.9,2774.7,0.00440168]
[1643811417172,1.95900057,2774.9,2774.7,0.00440168]
[1643811417372,3.9306094,2774.9,2774.7,0.00440168]
[1643811417672,1.96159813,2774.8,2774.7,0.00440168]
[1643811417872,1.96159813,2774.8,2774.3,0.00142832]
[1643811418073,1.96159813,2774.8,2774.7,0.00440173]
[1643811418277,1.38109,2774.9,2774.7,0.00440173]
[1643811418929,1.08109,2774.9,2774.7,0.00440173]
[1643811419129,0.1801,2774.9,2774.3,0.00142832]
[1643811419329,0.1802,2775.0,2774.7,0.00440173]
[1643811419530,0.90560835,2775.0,2774.7,0.00440173]
[1643811420132,1.98360331,2774.9,2774.7,0.00440173]
[1643811420432,1.98360331,2774.9,2774.7,0.00440168]
[1643811420631,2.28360331,2774.9,2774.7,0.00440168]
[1643811421031,0.3,2774.9,2774.7,0.00440168]
[1643811421332,0.901,2774.9,2774.7,0.00440168]
[1643811421531,0.901,2774.9,2774.3,0.18152832]
[1643811421731,0.1802,2775.0,2774.7,0.00412555]
[1643811421931,0.41346322,2775.1,2774.7,0.00412555]
[1643811422132,0.71346322,2775.1,2774.7,0.00412555]
[1643811422333,0.76015737,2774.9,2774.7,0.00412555]
[1643811422973,1.66115737,2774.9,2774.7,0.00412555]
[1643811423175,1.65960953,2774.9,2774.7,0.00412555]
[1643811423787,1.65960953,2774.9,2774.3,0.18152832]
[1643811424081,0.23903576,2774.5,2774.3,0.18152832]
[1643811424480,0.23903576,2774.5,2774.3,0.1801]
[1643811425082,1.94709388,2774.8,2774.3,0.1801]
[1643811425283,1.94709388,2774.8,2774.4,0.00032879]
[1643811425481,0.90097,2775.3,2774.3,0.00416626]
[1643811425482,0.1802,2775.2,2774.3,0.00416626]
[1643811425683,0.1802,2775.2,2774.4,0.6992]
[1643811425884,0.4802,2775.2,2774.4,0.6992]
[1643811426224,0.2239253,2774.7,2774.4,0.6992]
[1643811426424,0.2239253,2774.7,2774.4,0.519]
[1643811426627,0.2239253,2774.7,2774.4,1.41989]
[1643811427125,0.2239253,2774.7,2774.4,0.90089]
[1643811427725,0.2239253,2774.7,2774.4,0.90505614]
[1643811428128,1.08107,2775.4,2774.4,2.20505614]
[1643811428329,1.08107,2775.4,2774.7,0.90073]
[1643811428330,0.1802,2775.4,2774.7,0.90073]
[1643811428532,0.1801,2776.0,2774.8,0.6991]
[1643811428730,0.1801,2776.1,2774.9,2.0]
[1643811428937,0.1801,2776.5,2775.2,0.01211534]
[1643811429132,0.25559959,2776.3,2775.5,0.69556405]
[1643811429335,0.25559959,2776.3,2775.6,0.1799]
[1643811429534,0.25559959,2776.3,2775.6,1.59927]
[1643811430179,0.25559959,2776.3,2775.8,0.00416223]
[1643811430377,0.25559959,2776.3,2775.9,0.519]
[1643811430982,0.25559959,2776.3,2775.9,1.41943]
[1643811431186,0.25559959,2776.3,2775.9,0.519]
[1643811431379,0.25559959,2776.3,2776.0,0.0041621]
[1643811431777,0.1801,2776.2,2776.0,0.0041621]
[1643811432180,0.1801,2776.2,2775.5,1.4196]
[1643811432578,0.1801,2776.2,2776.0,0.00415936]
[1643811433479,0.1801,2776.2,2775.5,1.4196]
[1643811433733,0.9006,2776.1,2776.0,0.00415936]
[1643811433936,1.2006,2776.1,2776.0,0.00415936]
[1643811434333,1.43187726,2776.1,2776.0,0.00415936]
[1643811434534,1.43187726,2776.1,2775.5,1.4196]
[1643811434734,0.24913693,2775.6,2775.5,1.4196]
[1643811434933,0.3,2776.1,2775.5,1.4196]
[1643811435134,0.624232,2776.3,2775.5,1.4196]
[1643811435334,0.4801,2776.3,2775.5,1.4196]
[1643811436136,0.4801,2776.3,2775.8,0.00415992]
[1643811436340,0.19435285,2776.2,2775.8,0.00415992]
[1643811436936,0.19435285,2776.2,2775.5,1.0807]
[1643811437136,0.4801,2776.3,2775.5,1.4196]
[1643811437337,0.4801,2776.3,2775.9,0.00415984]
[1643811437575,0.1801,2776.3,2775.9,0.00415984]
[1643811437979,0.1801,2776.5,2775.9,0.00415984]
[1643811438177,0.1801,2776.5,2775.9,0.519]
[1643811438577,0.1801,2776.5,2776.0,0.00415976]
[1643811438781,0.26288141,2776.4,2776.0,0.00415976]
[1643811439180,0.26288141,2776.4,2776.0,0.90460976]
[1643811439381,0.26288141,2776.4,2776.0,0.90045]
[1643811439780,0.26288141,2776.4,2776.1,0.00415962]
[1643811440582,0.26288141,2776.4,2776.0,0.90045]
[1643811440781,0.26288141,2776.4,2776.1,0.00415958]
[1643811441824,0.26288141,2776.4,2776.0,0.90045]
[1643811442026,0.26288141,2776.4,2776.1,0.00415958]
[1643811443029,0.26288141,2776.4,2776.0,0.90045]
[1643811443227,0.26288141,2776.4,2776.1,0.00415958]
[1643811443634,0.26288141,2776.4,2776.2,0.519]
[1643811443831,0.26288141,2776.4,2776.3,4.00027]
[1643811444032,0.26288141,2776.4,2776.3,0.90027]
[1643811445373,0.26288141,2776.4,2776.2,0.519]
[1643811445773,0.26288141,2776.4,2776.2,0.5231595]
[1643811446377,1.16334141,2776.4,2776.2,0.5231595]
[1643811446575,1.16334141,2776.4,2776.2,0.519]
[1643811446780,1.46334141,2776.4,2775.9,1.80079]
[1643811446978,1.46334141,2776.4,2776.2,0.00415954]
[1643811447876,1.46334141,2776.4,2775.9,1.80079]
[1643811448077,2.36383141,2776.4,2776.2,0.00415954]
[1643811448480,5.87761794,2776.3,2776.2,0.00415954]
[1643811448726,1.82761794,2776.3,2776.2,0.00415954]
[1643811449130,2.70194,2776.2,2775.8,0.1799]
[1643811449335,3.00194,2776.2,2776.1,0.00415958]
[1643811449533,4.52960799,2776.2,2776.1,0.00415958]
[1643811449735,4.52842081,2776.2,2776.1,0.00415958]
[1643811450340,0.90067,2776.0,2775.3,1.98128]
[1643811450734,0.25834908,2775.8,2775.3,1.98128]
[1643811451333,1.10966468,2775.8,2775.3,1.98128]
[1643811451634,2.01032468,2775.8,2775.4,0.00416015]
[1643811452471,1.15900908,2775.8,2775.4,0.00416015]
[1643811452774,1.15900908,2775.8,2775.3,1.80118]
[1643811452976,1.15900908,2775.8,2775.5,0.00416011]
[1643811453775,1.15900908,2775.8,2775.3,2.80118]
[1643811453978,1.15900908,2775.8,2775.3,1.80118]
[1643811454179,1.15900908,2775.8,2775.5,0.00416007]
[1643811454383,1.15900908,2775.8,2775.5,0.90476007]
[1643811454384,0.25834908,2775.8,2775.5,0.90476007]
[1643811454678,0.90051,2776.1,2775.5,0.90476007]
[1643811454878,0.1801,2776.6,2775.5,1.90476007]
[1643811455079,1.67166687,2776.5,2775.6,3.69673614]
[1643811455279,0.144127,2776.5,2775.7,3.32392996]
[1643811455680,0.22348977,2776.0,2775.7,3.32392996]
[1643811456078,0.22348977,2776.0,2775.7,4.22432796]
[1643811456326,0.22348977,2776.0,2775.8,0.90039]
[1643811457627,0.22348977,2776.0,2775.9,3.019]
[1643811457830,0.22348977,2776.0,2775.9,0.519]
[1643811459834,0.90047,2776.2,2775.9,0.519]
[1643811460975,0.26488112,2776.0,2775.9,0.519]
[1643811461175,0.90047,2776.2,2775.9,0.519]
[1643811461375,0.90047,2776.2,2775.9,2.32715314]
[1643811461774,0.90047,2776.2,2776.0,1.80074]
[1643811462178,0.24221051,2776.1,2776.0,1.80074]
[1643811462575,0.24221051,2776.1,2776.0,1.80489971]
[1643811463576,0.24221051,2776.1,2776.0,1.80074]
[1643811466540,0.90047,2776.2,2776.0,1.80074]
[1643811467346,0.90047,2776.2,2776.0,1.80489971]
[1643811467777,0.20070534,2776.1,2776.0,1.80489971]
[1643811468376,0.20070534,2776.1,2776.0,1.80074]
[1643811470787,0.19964541,2776.1,2776.0,1.80074]
[1643811472337,0.90047,2776.2,2776.0,1.80074]
[1643811473337,0.19430221,2776.2,2776.0,2.80482257]
[1643811474342,0.19430221,2776.2,2776.0,2.80074]
[1643811475374,0.3,2776.5,2776.1,1.88664192]
[1643811475576,1.52738126,2776.4,2776.2,0.90024]
[1643811475774,1.52738126,2776.4,2776.2,1.41924]
[1643811476174,0.90033,2776.6,2776.3,1.8005]
[1643811476575,1.78290394,2776.5,2776.3,1.8005]
[1643811476774,1.5273614,2776.4,2776.3,1.8005]
[1643811476974,1.5273614,2776.4,2776.3,1.80312742]
[1643811478075,1.5273614,2776.4,2776.3,2.7007467]
[1643811479137,0.25554254,2776.5,2776.3,4.0007467]
[1643811479433,0.25554254,2776.5,2776.4,0.90024]
[1643811479833,1.78294929,2776.5,2776.4,0.90024]
[1643811480037,0.25554254,2776.5,2776.4,0.90024]
[1643811480235,0.55554254,2776.5,2776.4,0.90024]
[1643811480439,2.08297011,2776.5,2776.4,0.90024]
[1643811480635,1.78297011,2776.5,2776.4,0.90024]
[1643811482477,1.78297011,2776.5,2776.3,2.32402228]
[1643811482675,1.78297011,2776.5,2776.3,2.3195]
[1643811482676,1.52742757,2776.4,2776.3,2.3195]
[1643811482875,1.52742757,2776.4,2776.3,2.32402228]
[1643811483878,1.52742757,2776.4,2776.3,2.3195]
[1643811484880,1.53242757,2776.4,2776.3,0.524]
[1643811485082,1.52742757,2776.4,2776.0,0.1799]
[1643811485283,1.52742757,2776.4,2775.2,1.23]
[1643811485284,5.8301,2776.3,2775.2,1.23]
[1643811485483,5.8301,2776.3,2776.2,0.00452238]
[1643811485484,6.01019,2776.3,2776.2,0.00452238]
[1643811485685,8.5503304,2776.3,2776.2,0.00452238]
[1643811485882,6.15,2776.2,2775.3,0.00146119]
[1643811486083,0.73898039,2775.5,2775.3,0.00146119]
[1643811486330,1.5278235,2775.4,2775.1,0.00146119]
[1643811486929,0.25209313,2775.3,2775.1,0.00146119]
[1643811487130,2.18009,2775.2,2774.9,0.00146119]
[1643811487332,2.5278235,2775.1,2774.9,0.00146119]
[1643811487530,9.8579235,2775.0,2774.9,0.00146119]
[1643811487731,8.3380135,2775.0,2773.9,0.00146119]
[1643811487930,8.3380135,2775.0,2774.0,0.1802]
[1643811487931,0.84109893,2774.2,2774.0,0.1802]
[1643811488132,0.22797665,2774.1,2773.9,0.00146119]
[1643811488435,0.22797665,2774.1,2773.7,0.1802]
[1643811488833,0.22797665,2774.1,2773.7,0.18166119]
[1643811489035,0.22797665,2774.1,2773.9,0.00443415]
[1643811489434,2.15785469,2774.1,2773.9,0.00443415]
[1643811489634,0.22797665,2774.1,2773.9,0.18463415]
[1643811489833,0.22797665,2774.1,2773.9,0.1802]
[1643811490084,2.18085021,2774.1,2773.9,0.18463415]
[1643811490284,0.22797665,2774.1,2773.9,0.18463415]
[1643811490681,0.22797665,2774.1,2773.9,0.00443415]